fUSD/lending_fUSD_20240729
["ID","MTS","AMOUNT","RATE_DAILY","PERIOD"]
[333624236,1722293447648,-500.0,0.00010958,2]
[333624238,1722293447657,-398.95,0.00010958,2]
[333624240,1722293447666,-591.11,0.00010958,2]
[333624242,1722293447676,-500.0,0.00010958,2]
[333624244,1722293447684,-500.0,0.00010958,2]
[333624246,1722293447694,-500.0,0.00010958,2]
[333624248,1722293447703,-500.0,0.00010958,2]
[333624250,1722293447712,-500.0,0.00010958,2]
[333624252,1722293447721,-500.0,0.00010958,2]
[333624254,1722293447730,-500.0,0.00010958,2]
[333624256,1722293447739,-418.79,0.00010958,2]
[333624258,1722293447748,-386.68142865,0.00010958,2]
[333624260,1722293447757,-500.0,0.00010958,2]
[333624261,1722293447766,-500.0,0.00010958,2]
[333624263,1722293447776,-500.0,0.00010958,2]
[333624265,1722293447785,-500.0,0.00010958,2]
[333624267,1722293447794,-500.0,0.00010958,2]
[333624269,1722293447803,-500.0,0.00010958,2]
[333624271,1722293447812,-500.0,0.00010958,2]
[333624273,1722293447822,-500.0,0.00010958,2]
[333624275,1722293447831,-500.0,0.00010958,2]
[333624277,1722293447840,-500.0,0.00010958,2]
[333624279,1722293447850,-500.0,0.00010958,2]
[333624281,1722293447859,-500.0,0.00010958,2]
[333624282,1722293447868,-500.0,0.00010958,2]
[333624284,1722293447878,-620.44,0.00010958,2]
[333624286,1722293447887,-500.0,0.00010958,2]
[333624287,1722293447897,-500.0,0.00010958,2]
[333624288,1722293447906,-500.0,0.00010958,2]
[333624289,1722293447915,-500.0,0.00010958,2]
[333624290,1722293447924,-500.0,0.00010958,2]
[333624291,1722293447933,-500.0,0.00010958,2]
[333624292,1722293447942,-501.3381952,0.00010958,2]
[333624293,1722293447951,-500.0,0.00010958,2]
[333624294,1722293447960,-500.0,0.00010958,2]
[333624295,1722293447969,-500.0,0.00010958,2]
[333624296,1722293447978,-500.0,0.00010958,2]
[333624297,1722293447987,-500.0,0.00010958,2]
[333624298,1722293447996,-500.0,0.00010958,2]
[333624299,1722293448006,-500.0,0.00010958,2]
[333624300,1722293448015,-258.41275141,0.00010958,2]
[333624301,1722293448024,-500.0,0.00010958,2]
[333624302,1722293448034,-500.0,0.00010958,2]
[333624303,1722293448043,-500.0,0.00010958,2]
[333624304,1722293448054,-500.0,0.00010958,2]
[333624305,1722293448064,-580.91,0.00010958,2]
[333624306,1722293448073,-500.0,0.00010958,2]
[333624307,1722293448082,-291.4179065,0.00010958,2]
[333624308,1722293448091,-500.0,0.00010958,2]
[333624309,1722293448100,-192.45540078,0.00010958,2]
[333624310,1722293448109,-772.29,0.00010958,2]
[333624311,1722293448119,-772.29,0.00010958,2]
[333624312,1722293448128,-459.8663595,0.00010958,2]
[333624313,1722293448139,-500.0,0.00010958,2]
[333624314,1722293448148,-500.0,0.00010958,2]
[333624315,1722293448157,-500.0,0.00010958,2]
[333624316,1722293448166,-500.0,0.00010958,2]
[333624317,1722293448176,-500.0,0.00010958,2]
[333624318,1722293448187,-500.0,0.00010958,2]
[333624319,1722293448196,-500.0,0.00010958,2]
[333624320,1722293448205,-509.67779472,0.00010958,2]
[333624321,1722293448216,-416.68236567,0.00010958,2]
[333624322,1722293448226,-500.0,0.00010958,2]
[333624323,1722293448235,-163.96,0.00010958,2]
[333624324,1722293448244,-500.0,0.00010958,2]
[333624325,1722293448254,-500.0,0.00010958,2]
[333624326,1722293448263,-500.0,0.00010958,2]
[333624327,1722293448272,-500.0,0.00010958,2]
[333624328,1722293448282,-500.0,0.00010958,2]
[333624329,1722293448291,-500.0,0.00010958,2]
[333624330,1722293448300,-500.0,0.00010958,2]
[333624331,1722293448309,-3494.7280384,0.00010958,2]
[333624332,1722293448319,-500.0,0.00010958,2]
[333624333,1722293448327,-500.0,0.00010958,2]
[333624334,1722293448337,-500.0,0.00010958,2]
[333624335,1722293448347,-500.0,0.00010958,2]
[333624336,1722293448356,-500.0,0.00010958,2]
[333624337,1722293448365,-500.0,0.00010958,2]
[333624338,1722293448375,-500.0,0.00010958,2]
[333624339,1722293448384,-500.0,0.00010958,2]
[333624340,1722293448393,-233.58,0.00010958,2]
[333624341,1722293448402,-500.0,0.00010958,2]
[333624342,1722293448411,-500.0,0.00010958,2]
[333624343,1722293448420,-500.0,0.00010958,2]
[333624344,1722293448429,-500.0,0.00010958,2]
[333624345,1722293448438,-500.0,0.00010958,2]
[333624346,1722293448447,-185.67244411,0.00010958,2]
[333624347,1722293448456,-500.0,0.00010958,2]
[333624348,1722293448466,-500.0,0.00010958,2]
[333624349,1722293448475,-500.0,0.00010958,2]
[333624350,1722293448484,-500.0,0.00010958,2]
[333624351,1722293448493,-500.0,0.00010958,2]
[333624352,1722293448502,-500.0,0.00010958,2]
[333624353,1722293448512,-500.0,0.00010958,2]
[333624354,1722293448521,-504.4476852,0.00010958,2]
[333624355,1722293448532,-505.08561024,0.00010958,2]
[333624356,1722293448543,-500.0,0.00010958,2]
[333624357,1722293448553,-396.9248615,0.00010958,2]
[333624358,1722293448562,-500.0,0.00010958,2]
[333624359,1722293448572,-500.0,0.00010958,2]
[333624360,1722293448582,-463.09,0.00010958,2]
[333624361,1722293448592,-500.0,0.00010958,2]
[333624362,1722293448602,-500.0,0.00010958,2]
[333624363,1722293448612,-500.0,0.00010958,2]
[333624364,1722293448621,-500.0,0.00010958,2]
[333624365,1722293448631,-500.0,0.00010958,2]
[333624366,1722293448640,-500.0,0.00010958,2]
[333624367,1722293448649,-500.0,0.00010958,2]
[333624368,1722293448659,-500.0,0.00010958,2]
[333624369,1722293448669,-530.74372355,0.00010958,2]
[333624370,1722293448678,-500.0,0.00010958,2]
[333624371,1722293448688,-500.0,0.00010958,2]
[333624372,1722293448697,-250.0,0.00010959,2]
[333624373,1722293448707,-150.0,0.00010959,2]
[333624374,1722293448717,-2225.63,0.00010959,2]
[333624375,1722293448726,-840.0,0.00010971,2]
[333624376,1722293448735,-891.66305116,0.00010976,2]
[333624377,1722293448745,-14613.0,0.00010986,2]
[333624378,1722293448754,-1193.3852423,0.00010994,2]
[333624379,1722293448764,-17679.2594942,0.00010994,2]
[333624380,1722293448773,-4208.1801636,0.00010994,2]
[333624381,1722293448783,-284.03,0.00010998,2]
[333624382,1722293448795,-500.0,0.00010998,2]
[333624383,1722293448804,-576.73,0.00010998,2]
[333624384,1722293448815,-500.0,0.00010998,2]
[333624385,1722293448825,-500.0,0.00010998,2]
[333624386,1722293448834,-785.55,0.00010998,2]
[333624387,1722293448844,-785.55,0.00010998,2]
[333624388,1722293448854,-500.0,0.00010998,2]
[333624389,1722293448863,-500.0,0.00010998,2]
[333624390,1722293448873,-500.0,0.00010998,2]
[333624391,1722293448883,-500.0,0.00010998,2]
[333624392,1722293448892,-500.0,0.00010998,2]
[333624393,1722293448902,-1024.22,0.00010998,2]
[333624394,1722293448911,-500.0,0.00010998,2]
[333624395,1722293448921,-500.0,0.00010998,2]
[333624396,1722293448930,-500.0,0.00010998,2]
[333624397,1722293448939,-500.0,0.00010998,2]
[333624398,1722293448949,-465.31,0.00010998,2]
[333624399,1722293448959,-500.0,0.00010998,2]
[333624400,1722293448974,-500.0,0.00010998,2]
[333624401,1722293448984,-500.0,0.00010998,2]
[333624402,1722293448993,-500.0,0.00010998,2]
[333624403,1722293449003,-500.0,0.00010998,2]
[333624404,1722293449013,-202.0,0.00010998,2]
[333624405,1722293449023,-500.0,0.00010998,2]
[333624406,1722293449034,-500.0,0.00010998,2]
[333624407,1722293449043,-320.55,0.00010998,2]
[333624408,1722293449053,-556.44,0.00010998,2]
[333624409,1722293449063,-500.0,0.00010998,2]
[333624410,1722293449073,-500.0,0.00010998,2]
[333624411,1722293449083,-500.0,0.00010998,2]
[333624412,1722293449092,-500.0,0.00010998,2]
[333624413,1722293449102,-500.0,0.00010998,2]
[333624414,1722293449113,-520.0,0.00010999,2]
[333624415,1722293449122,-500.0,0.00010999,2]
[333624416,1722293449132,-500.0,0.00010999,2]
[333624417,1722293449145,-500.0,0.00010999,2]
[333624418,1722293449155,-500.0,0.00010999,2]
[333624419,1722293449165,-500.0,0.00010999,2]
[333624420,1722293449175,-502.94647639,0.00010999,2]
[333624421,1722293449186,-500.0,0.00010999,2]
[333624422,1722293449196,-500.0,0.00010999,2]
[333624423,1722293449206,-498.0,0.00010999,2]
[333624424,1722293449218,-500.0,0.00010999,2]
[333624425,1722293449228,-506.73733262,0.00010999,2]
[333624426,1722293449238,-500.0,0.00010999,2]
[333624427,1722293449247,-500.0,0.00010999,2]
[333624428,1722293449257,-500.0,0.00010999,2]
[333624429,1722293449267,-562.85,0.00010999,2]
[333624430,1722293449276,-631.72,0.00010999,2]
[333624431,1722293449287,-500.0,0.00010999,2]
[333624432,1722293449296,-500.0,0.00010999,2]
[333624433,1722293449306,-500.0,0.00010999,2]
[333624434,1722293449316,-500.0,0.00010999,2]
[333624435,1722293449326,-210.57199001,0.00010999,2]
[333624436,1722293449336,-504.6116655,0.00010999,2]
[333624437,1722293449346,-180.92422887,0.00010999,2]
[333624438,1722293449355,-500.0,0.00010999,2]
[333624439,1722293449365,-500.0,0.00010999,2]
[333624440,1722293449374,-500.0,0.00010999,2]
[333624441,1722293449384,-500.0,0.00010999,2]
[333624442,1722293449394,-228.17,0.00010999,2]
[333624443,1722293449404,-500.0,0.00010999,2]
[333624444,1722293449413,-500.0,0.00010999,2]
[333624445,1722293449424,-500.0,0.00010999,2]
[333624446,1722293449433,-500.0,0.00010999,2]
[333624447,1722293449443,-500.0,0.00010999,2]
[333624448,1722293449453,-538.83,0.00010999,2]
[333624449,1722293449464,-510.09,0.00010999,2]
[333624450,1722293449473,-500.0,0.00010999,2]
[333624451,1722293449483,-500.0,0.00010999,2]
[333624452,1722293449493,-500.0,0.00010999,2]
[333624453,1722293449504,-347.1,0.00010999,2]
[333624454,1722293449514,-500.0,0.00010999,2]
[333624455,1722293449524,-598.84,0.00010999,2]
[333624456,1722293449533,-500.0,0.00010999,2]
[333624457,1722293449543,-500.0,0.00010999,2]
[333624458,1722293449553,-302.71,0.00010999,2]
[333624459,1722293449563,-508.2600414,0.00010999,2]
[333624460,1722293449572,-500.0,0.00010999,2]
[333624461,1722293449582,-496.63,0.00010999,2]
[333624462,1722293449592,-500.0,0.00010999,2]
[333624463,1722293449602,-500.0,0.00010999,2]
[333624464,1722293449612,-500.0,0.00010999,2]
[333624465,1722293449622,-225.42,0.00010999,2]
[333624466,1722293449632,-536.63,0.00010999,2]
[333624467,1722293449642,-500.0,0.00010999,2]
[333624468,1722293449652,-505.82847403,0.00010999,2]
[333624469,1722293449663,-514.59800485,0.00010999,2]
[333624470,1722293449673,-360.83258281,0.00010999,2]
[333624471,1722293449683,-500.0,0.00010999,2]
[333624472,1722293449693,-347.44581063,0.00010999,2]
[333624473,1722293449703,-500.0,0.00010999,2]
[333624474,1722293449714,-500.0,0.00010999,2]
[333624475,1722293449723,-550.38,0.00010999,2]
[333624476,1722293449734,-500.0,0.00010999,2]
[333624477,1722293449744,-222.05,0.00010999,2]
[333624478,1722293449754,-500.0,0.00010999,2]
[333624479,1722293449764,-341.45,0.00010999,2]
[333624480,1722293449774,-232.82,0.00010999,2]
[333624481,1722293449784,-410.8,0.00010999,2]
[333624482,1722293449794,-500.0,0.00010999,2]
[333624483,1722293449804,-500.0,0.00010999,2]
[333624484,1722293449814,-500.0,0.00010999,2]
[333624485,1722293449824,-274.49,0.00010999,2]
[333624486,1722293449834,-500.0,0.00010999,2]
[333624487,1722293449844,-500.0,0.00010999,2]
[333624488,1722293449855,-500.0,0.00010999,2]
[333624489,1722293449865,-500.0,0.00010999,2]
[333624490,1722293449876,-500.0,0.00010999,2]
[333624491,1722293449886,-500.0,0.00010999,2]
[333624492,1722293449896,-500.0,0.00010999,2]
[333624493,1722293449906,-500.0,0.00010999,2]
[333624494,1722293449916,-500.0,0.00010999,2]
[333624495,1722293449926,-500.0,0.00010999,2]
[333624496,1722293449936,-500.0,0.00010999,2]
[333624497,1722293449945,-503.58209608,0.00010999,2]
[333624498,1722293449955,-500.0,0.00010999,2]
[333624499,1722293449965,-585.14,0.00010999,2]
[333624500,1722293449974,-500.0,0.00010999,2]
[333624501,1722293449984,-500.0,0.00010999,2]
[333624502,1722293449994,-263.29,0.00010999,2]
[333624503,1722293450004,-500.0,0.00010999,2]
[333624504,1722293450014,-500.0,0.00010999,2]
[333624505,1722293450024,-603.47,0.00010999,2]
[333624506,1722293450033,-500.0,0.00010999,2]
[333624507,1722293450043,-467.08,0.00010999,2]
[333624508,1722293450053,-191.03,0.00010999,2]
[333624509,1722293450063,-500.0,0.00010999,2]
[333624510,1722293450073,-500.0,0.00010999,2]
[333624511,1722293450083,-500.0,0.00010999,2]
[333624512,1722293450092,-588.07,0.00010999,2]
[333624513,1722293450102,-500.0,0.00010999,2]
[333624514,1722293450111,-490.3277639,0.00010999,2]
[333624515,1722293450121,-500.0,0.00010999,2]
[333624516,1722293450131,-500.0,0.00010999,2]
[333624517,1722293450143,-317.58,0.00010999,2]
[333624518,1722293450152,-500.0,0.00010999,2]
[333624519,1722293450162,-500.0,0.00010999,2]
[333624520,1722293450172,-500.0,0.00010999,2]
[333624521,1722293450183,-194.68,0.00010999,2]
[333624522,1722293450192,-150.0,0.00010999,2]
[333624523,1722293450202,-500.0,0.00010999,2]
[333624524,1722293450212,-311.87258504,0.00010999,2]
[333624525,1722293450223,-500.0,0.00010999,2]
[333624526,1722293450234,-549.11,0.00010999,2]
[333624527,1722293450243,-508.04593243,0.00010999,2]
[333624528,1722293450253,-501.88335424,0.00010999,2]
[333624529,1722293450262,-283.86,0.00010999,2]
[333624530,1722293450272,-276.93,0.00010999,2]
[333624531,1722293450282,-500.0,0.00010999,2]
[333624532,1722293450291,-500.0,0.00010999,2]
[333624533,1722293450301,-500.0,0.00010999,2]
[333624534,1722293450311,-500.0,0.00010999,2]
[333624535,1722293450321,-500.0,0.00010999,2]
[333624536,1722293450331,-472.45874302,0.00010999,2]
[333624537,1722293450340,-502.73144484,0.00010999,2]
[333624538,1722293450350,-500.0,0.00010999,2]
[333624539,1722293450360,-500.0,0.00010999,2]
[333624540,1722293450369,-154.23,0.00010999,2]
[333624541,1722293450379,-500.0,0.00010999,2]
[333624542,1722293450389,-500.0,0.00010999,2]
[333624543,1722293450398,-381.93,0.00010999,2]
[333624544,1722293450408,-500.0,0.00010999,2]
[333624545,1722293450417,-500.0,0.00010999,2]
[333624546,1722293450427,-500.0,0.00010999,2]
[333624547,1722293450436,-500.0,0.00010999,2]
[333624548,1722293450446,-500.0,0.00010999,2]
[333624549,1722293450456,-500.0,0.00010999,2]
[333624550,1722293450465,-500.0,0.00010999,2]
[333624551,1722293450475,-500.0,0.00010999,2]
[333624552,1722293450485,-621.41443663,0.00010999,2]
[333624553,1722293450495,-500.0,0.00010999,2]
[333624554,1722293450504,-151.88,0.00010999,2]
[333624555,1722293450514,-262.81,0.00010999,2]
[333624556,1722293450523,-500.0,0.00010999,2]
[333624557,1722293450533,-413.39,0.00010999,2]
[333624558,1722293450543,-500.0,0.00010999,2]
[333624559,1722293450552,-500.0,0.00010999,2]
[333624560,1722293450562,-500.0,0.00010999,2]
[333624561,1722293450571,-323.47,0.00010999,2]
[333624562,1722293450581,-500.0,0.00010999,2]
[333624563,1722293450590,-256.94,0.00010999,2]
[333624564,1722293450601,-501.76885057,0.00010999,2]
[333624565,1722293450611,-500.0,0.00010999,2]
[333624566,1722293450620,-500.0,0.00010999,2]
[333624567,1722293450630,-500.0,0.00010999,2]
[333624568,1722293450640,-511.01471845,0.00010999,2]
[333624569,1722293450650,-500.0,0.00010999,2]
[333624570,1722293450804,-246.30136188,0.00010999,2]
[333624571,1722293450814,-249.24,0.00010999,2]
[333624572,1722293450824,-416.64,0.00010999,2]
[333624573,1722293450833,-199.07,0.00010999,2]
[333624574,1722293450842,-500.0,0.00010999,2]
[333624575,1722293450852,-500.0,0.00010999,2]
[333624576,1722293450862,-500.0,0.00010999,2]
[333624577,1722293450871,-500.0,0.00010999,2]
[333624578,1722293450880,-370.3849833,0.00010999,2]
[333624579,1722293450889,-500.0,0.00010999,2]
[333624580,1722293450899,-278.23,0.00010999,2]
[333624581,1722293450908,-500.0,0.00010999,2]
[333624582,1722293450917,-500.0,0.00010999,2]
[333624583,1722293450927,-500.0,0.00010999,2]
[333624584,1722293450936,-500.0,0.00010999,2]
[333624585,1722293450946,-500.0,0.00010999,2]
[333624586,1722293450955,-500.0,0.00010999,2]
[333624587,1722293450964,-500.0,0.00010999,2]
[333624588,1722293450973,-291.07989981,0.00010999,2]
[333624589,1722293450982,-522.18,0.00010999,2]
[333624590,1722293450991,-500.0,0.00010999,2]
[333624591,1722293451001,-500.0,0.00010999,2]
[333624592,1722293451010,-367.94,0.00010999,2]
[333624593,1722293451019,-500.0,0.00010999,2]
[333624594,1722293451029,-500.0,0.00010999,2]
[333624595,1722293451039,-500.0,0.00010999,2]
[333624596,1722293451048,-500.0,0.00010999,2]
[333624597,1722293451057,-500.0,0.00010999,2]
[333624598,1722293451066,-500.0,0.00010999,2]
[333624599,1722293451076,-500.0,0.00010999,2]
[333624600,1722293451085,-500.0,0.00010999,2]
[333624601,1722293451095,-500.0,0.00010999,2]
[333624602,1722293451104,-500.0,0.00010999,2]
[333624603,1722293451114,-500.0,0.00010999,2]
[333624604,1722293451123,-500.0,0.00010999,2]
[333624605,1722293451132,-466.30769866,0.00010999,2]
[333624606,1722293451144,-500.0,0.00010999,2]
[333624607,1722293451153,-500.0,0.00010999,2]
[333624608,1722293451163,-423.81,0.00010999,2]
[333624609,1722293451172,-500.0,0.00010999,2]
[333624610,1722293451182,-500.0,0.00010999,2]
[333624611,1722293451192,-500.0,0.00010999,2]
[333624612,1722293451201,-500.0,0.00010999,2]
[333624613,1722293451210,-500.0,0.00010999,2]
[333624614,1722293451221,-500.0,0.00010999,2]
[333624615,1722293451230,-180.54,0.00010999,2]
[333624616,1722293451239,-421.61,0.00010999,2]
[333624617,1722293451249,-500.0,0.00010999,2]
[333624618,1722293451258,-500.0,0.00010999,2]
[333624619,1722293451268,-500.0,0.00010999,2]
[333624620,1722293451277,-500.0,0.00010999,2]
[333624621,1722293451287,-500.0,0.00010999,2]
[333624622,1722293451296,-500.0,0.00010999,2]
[333624623,1722293451305,-500.0,0.00010999,2]
[333624624,1722293451314,-500.0,0.00010999,2]
[333624625,1722293451323,-204.48,0.00010999,2]
[333624626,1722293451332,-500.0,0.00010999,2]
[333624627,1722293451341,-500.0,0.00010999,2]
[333624628,1722293451350,-500.0,0.00010999,2]
[333624629,1722293451360,-362.02160667,0.00010999,2]
[333624630,1722293451369,-231.38,0.00010999,2]
[333624631,1722293451378,-500.0,0.00010999,2]
[333624632,1722293451388,-251.49,0.00010999,2]
[333624633,1722293451397,-500.0,0.00010999,2]
[333624634,1722293451406,-500.0,0.00010999,2]
[333624635,1722293451415,-500.0,0.00010999,2]
[333624636,1722293451425,-500.0,0.00010999,2]
[333624637,1722293451435,-300.59,0.00010999,2]
[333624638,1722293451444,-500.0,0.00010999,2]
[333624639,1722293451453,-433.4,0.00010999,2]
[333624640,1722293451463,-408.26,0.00010999,2]
[333624641,1722293451472,-500.0,0.00010999,2]
[333624642,1722293451481,-634.37,0.00010999,2]
[333624643,1722293451491,-535.25,0.00010999,2]
[333624644,1722293451499,-500.0,0.00010999,2]
[333624645,1722293451509,-500.0,0.00010999,2]
[333624646,1722293451518,-500.0,0.00010999,2]
[333624647,1722293451527,-616.6,0.00010999,2]
[333624648,1722293451537,-500.0,0.00010999,2]
[333624649,1722293451546,-500.0,0.00010999,2]
[333624650,1722293451554,-500.0,0.00010999,2]
[333624651,1722293451563,-500.0,0.00010999,2]
[333624652,1722293451572,-259.14,0.00010999,2]
[333624653,1722293451582,-500.0,0.00010999,2]
[333624654,1722293451591,-500.0,0.00010999,2]
[333624655,1722293451601,-500.0,0.00010999,2]
[333624656,1722293451610,-603.08,0.00010999,2]
[333624657,1722293451620,-500.0,0.00010999,2]
[333624658,1722293451629,-514.93065172,0.00010999,2]
[333624659,1722293451638,-500.0,0.00010999,2]
[333624660,1722293451647,-500.0,0.00010999,2]
[333624661,1722293451657,-500.0,0.00010999,2]
[333624662,1722293451667,-500.0,0.00010999,2]
[333624663,1722293451676,-500.0,0.00010999,2]
[333624664,1722293451686,-605.13,0.00010999,2]
[333624665,1722293451696,-500.0,0.00010999,2]
[333624666,1722293451705,-500.0,0.00010999,2]
[333624667,1722293451714,-260.45,0.00010999,2]
[333624668,1722293451723,-500.0,0.00010999,2]
[333624669,1722293451733,-272.13,0.00010999,2]
[333624670,1722293451742,-438.58,0.00010999,2]
[333624671,1722293451752,-500.0,0.00010999,2]
[333624672,1722293451762,-500.0,0.00010999,2]
[333624673,1722293451772,-500.0,0.00010999,2]
[333624674,1722293451781,-500.0,0.00010999,2]
[333624675,1722293451791,-500.0,0.00010999,2]
[333624676,1722293451800,-500.0,0.00010999,2]
[333624677,1722293451809,-500.0,0.00010999,2]
[333624678,1722293451818,-585.25,0.00010999,2]
[333624679,1722293451828,-500.0,0.00010999,2]
[333624680,1722293451837,-500.0,0.00010999,2]
[333624681,1722293451846,-184.87,0.00010999,2]
[333624682,1722293451855,-386.11,0.00010999,2]
[333624683,1722293451864,-500.0,0.00010999,2]
[333624684,1722293451873,-244.86,0.00010999,2]
[333624685,1722293451882,-500.0,0.00010999,2]
[333624686,1722293451891,-521.1,0.00010999,2]
[333624687,1722293451900,-500.0,0.00010999,2]
[333624688,1722293451910,-500.0,0.00010999,2]
[333624689,1722293451919,-500.0,0.00010999,2]
[333624690,1722293451928,-500.0,0.00010999,2]
[333624691,1722293451937,-500.0,0.00010999,2]
[333624692,1722293451947,-500.0,0.00010999,2]
[333624693,1722293451957,-500.0,0.00010999,2]
[333624694,1722293451967,-500.0,0.00010999,2]
[333624695,1722293451976,-500.0,0.00010999,2]
[333624696,1722293451985,-500.0,0.00010999,2]
[333624697,1722293451994,-581.17,0.00010999,2]
[333624698,1722293452003,-500.0,0.00010999,2]
[333624699,1722293452013,-515.46,0.00010999,2]
[333624700,1722293452023,-500.0,0.00010999,2]
[333624701,1722293452032,-307.81274331,0.00010999,2]
[333624702,1722293452042,-172.08,0.00010999,2]
[333624703,1722293452051,-500.0,0.00010999,2]
[333624704,1722293452060,-620.84,0.00010999,2]
[333624705,1722293452069,-597.46,0.00010999,2]
[333624706,1722293452078,-500.0,0.00010999,2]
[333624707,1722293452087,-500.0,0.00010999,2]
[333624708,1722293452097,-470.1,0.00010999,2]
[333624709,1722293452106,-500.0,0.00010999,2]
[333624710,1722293452115,-500.0,0.00010999,2]
[333624711,1722293452125,-500.0,0.00010999,2]
[333624712,1722293452134,-500.0,0.00010999,2]
[333624713,1722293452148,-500.0,0.00010999,2]
[333624714,1722293452157,-406.28,0.00010999,2]
[333624715,1722293452167,-500.0,0.00010999,2]
[333624716,1722293452176,-356.59,0.00010999,2]
[333624717,1722293452186,-604.0,0.00010999,2]
[333624718,1722293452195,-500.0,0.00010999,2]
[333624719,1722293452204,-500.0,0.00010999,2]
[333624720,1722293452214,-500.0,0.00010999,2]
[333624721,1722293452225,-500.0,0.00010999,2]
[333624722,1722293452235,-500.0,0.00010999,2]
[333624723,1722293452244,-500.0,0.00010999,2]
[333624724,1722293452254,-500.0,0.00010999,2]
[333624725,1722293452263,-257.06,0.00010999,2]
[333624726,1722293452272,-500.0,0.00010999,2]
[333624727,1722293452283,-625.64417053,0.00010999,2]
[333624728,1722293452292,-500.0,0.00010999,2]
[333624729,1722293452302,-500.0,0.00010999,2]
[333624730,1722293452313,-582.15,0.00010999,2]
[333624731,1722293452322,-500.0,0.00010999,2]
[333624732,1722293452331,-500.0,0.00010999,2]
[333624733,1722293452341,-239.55,0.00010999,2]
[333624734,1722293452350,-500.0,0.00010999,2]
[333624735,1722293452359,-500.0,0.00010999,2]
[333624736,1722293452368,-261.41,0.00010999,2]
[333624737,1722293452378,-500.0,0.00010999,2]
[333624738,1722293452387,-502.02,0.00010999,2]
[333624739,1722293452398,-341.44,0.00010999,2]
[333624740,1722293452408,-482.93,0.00010999,2]
[333624741,1722293452419,-500.0,0.00010999,2]
[333624742,1722293452429,-185.95,0.00010999,2]
[333624743,1722293452439,-500.0,0.00010999,2]
[333624744,1722293452448,-500.0,0.00010999,2]
[333624745,1722293452458,-500.0,0.00010999,2]
[333624746,1722293452468,-500.0,0.00010999,2]
[333624747,1722293452477,-500.0,0.00010999,2]
[333624748,1722293452487,-551.6,0.00010999,2]
[333624749,1722293452496,-241.64,0.00010999,2]
[333624750,1722293452506,-500.0,0.00010999,2]
[333624751,1722293452515,-572.01,0.00010999,2]
[333624752,1722293452524,-500.0,0.00010999,2]
[333624753,1722293452533,-201.6,0.00010999,2]
[333624754,1722293452543,-186.18294556,0.00010999,2]
[333624755,1722293452552,-500.0,0.00010999,2]
[333624756,1722293452561,-500.0,0.00010999,2]
[333624757,1722293452571,-500.0,0.00010999,2]
[333624758,1722293452580,-500.0,0.00010999,2]
[333624759,1722293452589,-500.0,0.00010999,2]